{"text_format":"1","workbook":"xlsx","n_sheets":2,"sheets":["SnvUc","X"],"not_rendered":{"charts":0,"images":0,"macros":1,"external_links":1,"defined_names":2,"comments":1,"pivot_tables":0},"unopened":[],"bounds":{"document_bytes":16777216,"sheet_cells":100000,"rows_first":2000,"rows_last":500,"rows_between":2000,"halvings":0,"cell_chars":16384,"cell_head_chars":4096},"cells_cut":0,"cells_raw":0,"read":"whole","date_system":"1900"}

{"sheet":"SnvUc","index":0,"n_rows":52,"n_cols":29,"rows_kept":52,"cut":false,"hidden":false,"merged":[[51,1,53,2],[51,3,53,8],[51,10,53,11],[51,12,53,17],[44,0,44,13],[45,0,45,13],[45,15,45,18],[47,0,47,2],[47,3,47,8],[48,0,53,0],[48,1,50,2],[48,3,50,8],[48,9,53,9],[48,10,50,11],[48,12,50,17],[48,18,53,27],[41,1,41,18],[41,19,41,21],[43,0,43,3],[43,4,43,7],[43,8,43,10],[43,11,43,22],[39,1,39,14],[39,15,39,18],[39,19,39,21],[39,22,39,27],[40,1,40,14],[40,15,40,18],[40,19,40,21],[40,22,40,27],[37,1,37,14],[37,15,37,18],[37,19,37,21],[37,22,37,27],[38,1,38,14],[38,15,38,18],[38,19,38,21],[38,22,38,27],[35,1,35,14],[35,15,35,18],[35,19,35,21],[35,22,35,27],[36,1,36,14],[36,15,36,18],[36,19,36,21],[36,22,36,27],[30,1,30,18],[30,19,30,21],[32,3,32,24],[34,1,34,14],[34,15,34,18],[34,19,34,21],[34,22,34,27],[28,1,28,14],[28,15,28,18],[28,19,28,21],[28,22,28,27],[29,1,29,14],[29,15,29,18],[29,19,29,21],[29,22,29,27],[26,1,26,14],[26,15,26,18],[26,19,26,21],[26,22,26,27],[27,1,27,14],[27,15,27,18],[27,19,27,21],[27,22,27,27],[24,1,24,14],[24,15,24,18],[24,19,24,21],[24,22,24,27],[25,1,25,14],[25,15,25,18],[25,19,25,21],[25,22,25,27],[22,1,22,14],[22,15,22,18],[22,19,22,21],[22,22,22,27],[23,1,23,14],[23,15,23,18],[23,19,23,21],[23,22,23,27],[20,1,20,14],[20,15,20,18],[20,19,20,21],[20,22,20,27],[21,1,21,14],[21,15,21,18],[21,19,21,21],[21,22,21,27],[18,1,18,14],[18,15,18,18],[18,19,18,21],[18,22,18,27],[19,1,19,14],[19,15,19,18],[19,19,19,21],[19,22,19,27],[16,1,16,14],[16,15,16,18],[16,19,16,21],[16,22,16,27],[17,1,17,14],[17,15,17,18],[17,19,17,21],[17,22,17,27],[14,1,14,14],[14,15,14,18],[14,19,14,21],[14,22,14,27],[15,1,15,14],[15,15,15,18],[15,19,15,21],[15,22,15,27],[8,25,8,26],[9,3,9,24],[9,25,9,26],[0,5,0,22],[1,5,1,22],[2,5,2,22],[4,0,6,0],[4,1,4,6],[4,7,4,14],[4,15,6,15],[4,16,4,22],[11,0,13,0],[11,1,13,14],[11,15,13,18],[11,19,13,21],[11,22,13,27],[4,23,4,27],[5,1,5,6],[5,7,5,14],[5,16,6,22],[5,23,6,27],[6,1,6,6],[6,7,6,14]]}
[null,null,null,null,null,"BURSA TEKNİK ÜNİVERSİTESİ"]
[null,null,null,null,null,"ORTAK DERSLER"]
[null,null,null,null,null,"SINAV ÜCRETİ BİLDİRİM FORMU"]
[]
["ÖĞRETİM ELEMANININ","Bölümü",null,null,null,null,null,"REKTÖRLÜK ORTAK DERSLER",null,null,null,null,null,null,null,"SINAVIN","Öğretim Yılı",null,null,null,null,null,null,"2023 - 2024"]
[null,"Adı ve Soyadı  (Ünvan ile)",null,null,null,null,null,"Öğr.Gör.",null,null,null,null,null,null,null,null,"Yarıyılı",null,null,null,null,null,null,"BAHAR"]
[null,"TC Kimlik Numarası"]
[]
[]
[null,null,null,"ÖRGÜN ÖĞRETİM"]
[]
["SIRA NO","DERSİN ADI",null,null,null,null,null,null,null,null,null,null,null,null,null,"SINAVA GİREN ÖĞRENCİ SAYISI",null,null,null,"ÜCRETE ESAS BİRİM SAYI",null,null,"SINAV TARİHİ"]
[]
[]
[1,null,null,null,null,null,null,null,null,null,null,null,null,null,null,null,null,null,null,null,null,null,null,null,null,null,null,null,{"$f":"IF(AND(P15>300,P15<=350),7,IF(AND(P15>350,P15<=400),8,IF(AND(P15>400,P15<=450),9,IF(AND(P15>450),10))))","v":false}]
[2,null,null,null,null,null,null,null,null,null,null,null,null,null,null,null,null,null,null,{"$f":"IF(P16=\"\",\"\",IF(AND(P16>0,P16<=50),1,IF(AND(P16>50,P16<=100),2,IF(AND(P16>100,P16<=150),3,IF(AND(P16>150,P16<=200),4,IF(AND(P16>200,P16<=250),5,IF(AND(P16>250,P16<=300),6,AC16)))))))","v":""},null,null,null,null,null,null,null,null,false]
[3,null,null,null,null,null,null,null,null,null,null,null,null,null,null,null,null,null,null,"",null,null,null,null,null,null,null,null,false]
[4,null,null,null,null,null,null,null,null,null,null,null,null,null,null,null,null,null,null,null,null,null,null,null,null,null,null,null,false]
[5,null,null,null,null,null,null,null,null,null,null,null,null,null,null,null,null,null,null,{"$f":"IF(P19=\"\",\"\",IF(AND(P19>0,P19<=50),1,IF(AND(P19>50,P19<=100),2,IF(AND(P19>100,P19<=150),3,IF(AND(P19>150,P19<=200),4,IF(AND(P19>200,P19<=250),5,IF(AND(P19>250,P19<=300),6,AC19)))))))","v":""},null,null,null,null,null,null,null,null,false]
[6,null,null,null,null,null,null,null,null,null,null,null,null,null,null,null,null,null,null,{"$f":"IF(P20=\"\",\"\",IF(AND(P20>0,P20<=50),1,IF(AND(P20>50,P20<=100),2,IF(AND(P20>100,P20<=150),3,IF(AND(P20>150,P20<=200),4,IF(AND(P20>200,P20<=250),5,IF(AND(P20>250,P20<=300),6,AC20)))))))","v":""},null,null,null,null,null,null,null,null,false]
[7,null,null,null,null,null,null,null,null,null,null,null,null,null,null,null,null,null,null,null,null,null,null,null,null,null,null,null,false]
[8,null,null,null,null,null,null,null,null,null,null,null,null,null,null,null,null,null,null,null,null,null,null,null,null,null,null,null,false]
[9,null,null,null,null,null,null,null,null,null,null,null,null,null,null,null,null,null,null,null,null,null,null,null,null,null,null,null,false]
[10,null,null,null,null,null,null,null,null,null,null,null,null,null,null,null,null,null,null,null,null,null,null,null,null,null,null,null,false]
[11,null,null,null,null,null,null,null,null,null,null,null,null,null,null,null,null,null,null,null,null,null,null,null,null,null,null,null,false]
[12,null,null,null,null,null,null,null,null,null,null,null,null,null,null,null,null,null,null,"",null,null,null,null,null,null,null,null,false]
[13,null,null,null,null,null,null,null,null,null,null,null,null,null,null,null,null,null,null,"",null,null,null,null,null,null,null,null,false]
[14,null,null,null,null,null,null,null,null,null,null,null,null,null,null,null,null,null,null,"",null,null,null,null,null,null,null,null,false]
[15,null,null,null,null,null,null,null,null,null,null,null,null,null,null,null,null,null,null,""]
[16,null,null,null,null,null,null,null,null,null,null,null,null,null,null,null,null,null,null,"",null,null,null,null,null,null,null,null,false]
[null,"TOPLAM",null,null,null,null,null,null,null,null,null,null,null,null,null,null,null,null,null,{"$f":"SUM(T15:V30)","v":0}]
[]
[null,null,null,"İKİNCİ ÖĞRETİM"]
[]
[1,null,null,null,null,null,null,null,null,null,null,null,null,null,null,null,null,null,null,{"$f":"IF(P35=\"\",\"\",IF(AND(P35>0,P35<=50),1,IF(AND(P35>50,P35<=100),2,IF(AND(P35>100,P35<=150),3,IF(AND(P35>150,P35<=200),4,IF(AND(P35>200,P35<=250),5,IF(AND(P35>250,P35<=300),6,AC35)))))))","v":""},null,null,null,null,null,null,null,null,{"$f":"IF(AND(P35>300,P35<=350),7,IF(AND(P35>350,P35<=400),8,IF(AND(P35>400,P35<=450),9,IF(AND(P35>450),10))))","v":false}]
[2,null,null,null,null,null,null,null,null,null,null,null,null,null,null,null,null,null,null,{"$f":"IF(P36=\"\",\"\",IF(AND(P36>0,P36<=50),1,IF(AND(P36>50,P36<=100),2,IF(AND(P36>100,P36<=150),3,IF(AND(P36>150,P36<=200),4,IF(AND(P36>200,P36<=250),5,IF(AND(P36>250,P36<=300),6,AC36)))))))","v":""},null,null,null,null,null,null,null,null,false]
[3,null,null,null,null,null,null,null,null,null,null,null,null,null,null,null,null,null,null,"",null,null,null,null,null,null,null,null,false]
[4,null,null,null,null,null,null,null,null,null,null,null,null,null,null,null,null,null,null,"",null,null,null,null,null,null,null,null,false]
[5,null,null,null,null,null,null,null,null,null,null,null,null,null,null,null,null,null,null,"",null,null,null,null,null,null,null,null,false]
[6,null,null,null,null,null,null,null,null,null,null,null,null,null,null,null,null,null,null,""]
[7,null,null,null,null,null,null,null,null,null,null,null,null,null,null,null,null,null,null,"",null,null,null,null,null,null,null,null,false]
[null,"TOPLAM",null,null,null,null,null,null,null,null,null,null,null,null,null,null,null,null,null,{"$f":"SUM(T35:V41)","v":0}]
[]
[{"$f":"X5","v":"2023 - 2024"},null,null,null,"ÖĞRETİM YILI",null,null,null,{"$f":"X6","v":"BAHAR"},null,null,"YARIYILINDA YAPILAN DÖNEM SONU SINAVLARINDA"]
["ÖRGÜN ÖĞRETİMDEKİ ÜCRETE ESAS BİRİM SAYI",null,null,null,null,null,null,null,null,null,null,null,null,null,{"$f":"T31","v":0},";"]
["İKİNCİ ÖĞRETİMDEKİ ÜCRETE ESAS BİRİM SAYI",null,null,null,null,null,null,null,null,null,null,null,null,null,{"$f":"T42","v":0},"OLMUŞTUR."]
[]
["TARİH",null,null,{"$f":"TODAY()","v":"2024-03-04"}]
["ÖĞR. ELEMANININ","İmzası",null,null,null,null,null,null,null,"BÖLÜM BŞK.NIN","İmzası"]
[]
[]
[null,"Adı ve Soyadı",null,{"$f":"H6","v":"Öğr.Gör."},null,null,null,null,null,null,"Adı ve Soyadı"]

{"sheet":"X","index":1,"n_rows":22,"n_cols":5,"rows_kept":22,"cut":false,"hidden":true,"merged":[]}
["A","B",null,"D","E"]
[]
[{"$f":"IF(B3<>\"\",1,0)","v":1},"Müh. ve Doğa Bil. F.",null,{"$f":"IF(E3<>\"\",1,0)","v":1},"Lisansüstü Eğitim Ens."]
[1,"Denizcilik F.",null,0]
[1,"Lisansüstü Eğitim Ens.",null,0]
[1,"İletişim F.",null,0]
[1,"İnsan ve Toplum Bil. F.",null,0]
[1,"Meslek Yüksekokulu",null,0]
[1,"Orman F.",null,0]
[1,"Mimarlık ve Tasarım F.",null,0]
[1,"Sosyal Bil. Ens.",null,0]
[1,"YDYO",null,0]
[1,"Rektörlük ODB",null,0]
[0,null,null,0]
[0,null,null,0]
[0,null,null,0]
[0,null,null,0]
[0,null,null,0]
[0,null,null,0]
[0,null,null,0]
[0,null,null,0]
[{"$f":"COUNTIF(A3:A21,1)","v":11},null,null,{"$f":"COUNTIF(D3:D21,1)","v":1}]